[Event "FIDE World School-ch O-15 2025"]
[Site "Vrnjacka Banja"]
[Date "2025.03.25"]
[Round "6.7"]
[White "Harabor, David-Alexandru"]
[Black "Kuka Kyle"]
[Result "1-0"]
[Annotator "NA RC"]
[ECO "B10"]
[WhiteElo "1989"]
[BlackElo "1961"]
[PlyCount "79"]
[EventDate "2025.03.19"]
[EventType "swiss"]
[EventCountry "SRB"]
[SourceTitle "playchess.com"]
[Source "ChessBase"]
[SourceQuality "1"]
[TimeControl "5400+30"]

1. e4 {[%emt 0:00:09]} c6 {[%emt 0:00:05]} 2. Nf3 {[%emt 0:00:04]} d5 {[%emt 0:00:05]} 3. d3 {[%emt 0:00:03]} dxe4 {[%emt 0:00:34]} 4. dxe4 {[%emt 0:00:12]} Qxd1+ {[%emt 0:00:05]} 5. Kxd1 {[%emt 0:00:02]} Bg4 {[%emt 0:00:08]} 6. Be2 {[%emt 0:00:09]} Nf6 {[%emt 0:00:29]} 7. Nfd2 {[%emt 0:00:13]} Bxe2+ {[%emt 0:01:00]} 8. Kxe2 {[%emt 1:33:38]} Nbd7 {[%emt 0:00:12]} 9. a4 {[%emt 0:00:00]} a5 {[%emt 0:01:15]} 10. f3 {[%emt 0:00:00]} Ne5 {[%emt 0:08:20]} 11. Na3 {[%emt 0:00:00]} e6 {[%emt 0:01:06]} 12. Nac4 {[%emt 0:00:00]} Nfd7 {[%emt 0:00:15]} 13. f4 {[%emt 0:00:00]} Ng6 {[%emt 0:01:14]} 14. Nb3 {[%emt 0:00:00]} Nc5 {[%emt 0:11:08]} 15. Ncxa5 {[%emt 0:00:00]} Nxe4 {[%emt 0:00:23]} 16. Nxb7 {[%emt 0:00:00]} Bb4 {[%emt 0:04:52]} 17. a5 {[%emt 0:00:00]} Ra6 {[%emt 0:02:12]} 18. c3 {[%emt 0:00:00]} Be7 {[%emt 0:00:46]} 19. Be3 {[%emt 0:00:00]} O-O {[%emt 0:03:10]} 20. N3c5 {[%emt 0:00:00]} Nxc5 {[%emt 0:01:35]} 21. Nxc5 {[%emt 0:00:00]} Bxc5 {[%emt 0:00:40]} 22. Bxc5 {[%emt 0:00:00]} Rb8 {[%emt 0:00:05]} 23. b4 {[%emt 0:00:00]} Nxf4+ {[%emt 0:00:08]} 24. Kd2 {[%emt 0:00:00]} e5 {[%emt 0:04:46]} 25. Kc2 {[%emt 0:00:00]} f6 {[%emt 0:03:10]} 26. Rhd1 {[%emt 0:00:00]} Ne6 {[%emt 0:03:08]} 27. Bb6 {[%emt 0:00:00]} Rc8 {[%emt 0:08:19]} 28. Rd7 {[%emt 0:00:00]} Nf4 {[%emt 0:15:11]} 29. c4 {[%emt 0:00:00]} e4 {[%emt 0:00:23]} 30. Re1 {[%emt 0:00:00]} f5 {[%emt 0:13:16]} 31. Rf1 {[%emt 0:00:00]} Ne6 {[%emt 0:02:39]} 32. Rxf5 {[%emt 0:00:00]} c5 {[%emt 0:01:25]} 33. b5 {[%emt 0:00:00]} Rxb6 {[%emt 0:01:16]} 34. axb6 {[%emt 0:00:38]} Nd4+ {[%emt 0:00:06]} 35. Rxd4 {[%emt 0:00:06]} cxd4 {[%emt 0:00:04]} 36. c5 {[%emt 0:00:07]} Re8 {[%emt 0:03:32]} 37. b7 {[%emt 0:00:08]} d3+ {[%emt 0:01:29]} 38. Kd2 {[%emt 0:00:26]} e3+ {[%emt 0:00:44]} 39. Kxd3 {[%emt 0:00:37]} e2 {[%emt 0:00:16]} 40. Re5 {[%emt 0:00:02]} 1-0

[Event "FIDE World School-ch O-15 2025"]
[Site "Vrnjacka Banja"]
[Date "2025.03.25"]
[Round "6.8"]
[White "Urangoo, Gurvanbaatar"]
[Black "Blagoveshchenskiy, Roman"]
[Result "1-0"]
[Annotator "NA RC"]
[ECO "C14"]
[WhiteElo "1982"]
[BlackElo "1910"]
[PlyCount "77"]
[EventDate "2025.03.19"]
[EventType "swiss"]
[EventCountry "SRB"]
[SourceTitle "playchess.com"]
[Source "ChessBase"]
[SourceQuality "1"]
[TimeControl "5400+30"]

1. e4 {[%emt 0:00:00]} e6 {[%emt 0:00:08]} 2. d4 {[%emt 0:00:03]} d5 {[%emt 0:00:04]} 3. Nc3 {[%emt 0:00:15]} Nf6 {[%emt 0:00:09]} 4. Bg5 {[%emt 0:00:06]} Be7 {[%emt 0:02:56]} 5. e5 {[%emt 0:00:23]} Nfd7 {[%emt 0:00:18]} 6. Bxe7 {[%emt 0:00:05]} Qxe7 {[%emt 0:00:05]} 7. Qd2 {[%emt 0:00:01]} a6 {[%emt 0:01:11]} 8. Nd1 {[%emt 0:00:05]} c5 {[%emt 0:00:57]} 9. c3 {[%emt 0:00:00]} Nc6 {[%emt 0:01:14]} 10. f4 {[%emt 0:00:18]} O-O {[%emt 0:03:33]} 11. Nf3 {[%emt 0:00:43]} b5 {[%emt 0:01:27]} 12. Bd3 {[%emt 0:04:01]} f5 {[%emt 0:02:50]} 13. O-O {[%emt 0:07:21]} Rb8 {[%emt 0:01:45]} 14. a3 {[%emt 0:10:46]} Na5 {[%emt 0:12:44]} 15. Qe2 {[%emt 0:06:34]} Nb3 {[%emt 0:08:17]} 16. Rb1 {[%emt 0:01:35]} c4 {[%emt 0:01:12]} 17. Bc2 {[%emt 0:00:40]} a5 {[%emt 0:00:33]} 18. g4 {[%emt 0:07:32]} b4 {[%emt 0:11:07]} 19. axb4 {[%emt 0:01:10]} axb4 {[%emt 0:00:26]} 20. Ne3 {[%emt 0:09:34]} Nb6 {[%emt 0:02:53]} 21. gxf5 {[%emt 0:07:05]} exf5 {[%emt 0:00:28]} 22. Qg2 {[%emt 0:05:39]} Be6 {[%emt 0:08:44]} 23. Qg5 {[%emt 0:05:34]} Qd7 {[%emt 0:02:25]} 24. cxb4 {[%emt 0:00:33]} Na4 {[%emt 0:01:11]} 25. Rf2 {[%emt 0:03:22]} Rxb4 {[%emt 0:01:49]} 26. Rg2 {[%emt 0:01:27]} Rb7 {[%emt 0:09:10]} 27. Kh1 {[%emt 0:03:01]} Kh8 {[%emt 0:03:57]} 28. Qh4 {[%emt 0:02:19]} Qc8 {[%emt 0:01:15]} 29. Rg3 {[%emt 0:04:11]} Qd7 {[%emt 0:04:47]} 30. Qg5 {[%emt 0:07:33]} Qf7 {[%emt 0:04:21]} 31. Rh3 {[%emt 0:03:16]} Rc7 {[%emt 0:04:46]} 32. Qg3 {[%emt 0:02:01]} g6 {[%emt 0:01:26]} 33. Qe1 {[%emt 0:01:54]} Qe7 {[%emt 0:01:33]} 34. Ng2 {[%emt 0:01:49]} Nb6 {[%emt 0:02:15]} 35. Ngh4 {[%emt 0:00:38]} Kg7 {[%emt 0:00:36]} 36. Qg3 {[%emt 0:02:07]} Qe8 {[%emt 0:01:38]} 37. Qg5 {[%emt 0:01:02]} Qe7 {[%emt 0:00:50]} 38. Qh6+ {[%emt 0:00:45]} Kg8 {[%emt 0:00:13]} 39. Nxg6 {[%emt 0:00:26]} 1-0